bitfinex/quotes_BTCUSD_20250718
["timestamp","ask_amount","ask_price","bid_price","bid_amount"]
[1752844003008,0.22420707,119030.0,119020.0,0.23541917]
[1752844003228,0.23260774,119030.0,119020.0,0.29591917]
[1752844003446,0.24100863,119030.0,119020.0,0.27167606]
[1752844003661,0.24100863,119030.0,119020.0,0.27807772]
[1752844003872,0.24100855,119030.0,119020.0,0.27807772]
[1752844004115,0.24100855,119030.0,119020.0,0.23097433]
[1752844004322,0.41743437,119030.0,119020.0,0.05553348]
[1752844004529,0.24100848,119030.0,119020.0,0.24037606]
[1752844004735,0.24100848,119030.0,119020.0,0.23197433]
[1752844004966,0.41743423,119030.0,119020.0,0.23197433]
[1752844005403,0.41743423,119030.0,119020.0,0.05553348]
[1752844005620,0.41743423,119030.0,119020.0,0.06393535]
[1752844005828,0.41743423,119030.0,119020.0,0.23097433]
[1752844006056,1.43143322,119030.0,119020.0,0.001]
[1752844006487,0.93085254,119030.0,119020.0,0.001]
[1752844006740,0.85665165,119030.0,119020.0,0.001]
[1752844006943,0.17644085,119020.0,119010.0,0.01500085]
[1752844007155,0.34977075,119020.0,119010.0,0.01713085]
[1752844007583,0.35274075,119020.0,119010.0,0.01713085]
[1752844008043,0.08757028,119020.0,119010.0,0.18518395]
[1752844008251,0.10437325,119020.0,119010.0,0.20298876]
[1752844008458,0.11277491,119020.0,119010.0,0.19458646]
[1752844008678,0.11277491,119020.0,119010.0,0.01813085]
[1752844008679,0.29761763,119020.0,119010.0,0.01813085]
[1752844008915,0.28378466,119020.0,119010.0,0.01600085]
[1752844009126,0.36954428,119020.0,119010.0,0.01600085]
[1752844009540,0.2619512,119020.0,119010.0,0.01600085]
[1752844009758,0.28081466,119020.0,119010.0,0.01600085]
[1752844010009,0.34792587,119020.0,119010.0,0.01813085]
[1752844011484,0.87373555,119020.0,119010.0,0.01813085]
[1752844012319,0.34792587,119020.0,119010.0,0.01813085]
[1752844014015,0.28081459,119020.0,119010.0,0.01813085]
[1752844014444,0.09391173,119020.0,119010.0,0.19770646]
[1752844014659,0.08551028,119020.0,119010.0,0.21451092]
[1752844014846,0.08551028,119020.0,119010.0,0.28031092]
[1752844015294,0.22391028,119020.0,119010.0,0.28031092]
[1752844015500,0.08551028,119020.0,119010.0,0.28031092]
[1752844015738,0.22395028,119020.0,119010.0,0.28031092]
[1752844015962,0.00049679,119030.0,119020.0,0.26808481]
[1752844016218,0.22436707,119030.0,119020.0,0.27336481]
[1752844016886,0.13885679,119030.0,119020.0,0.27336481]
[1752844017282,0.13985679,119030.0,119020.0,0.27336481]
[1752844017489,0.13985679,119030.0,119020.0,0.27436481]
[1752844017694,0.13885679,119030.0,119020.0,0.27436481]
[1752844018064,0.13885679,119030.0,119020.0,0.27636481]
[1752844018265,0.00049679,119030.0,119020.0,0.86197871]
[1752844018471,0.00049679,119030.0,119020.0,0.85997871]
[1752844018669,0.00049679,119030.0,119020.0,0.85897871]
[1752844019956,0.00049679,119030.0,119020.0,0.86197871]
[1752844020170,0.00049679,119030.0,119020.0,0.33316903]
[1752844020414,0.00049679,119030.0,119020.0,0.86097871]
[1752844020659,0.00149679,119030.0,119020.0,0.34116903]
[1752844020952,0.00149679,119030.0,119020.0,1.00313871]
[1752844021155,0.00249679,119030.0,119020.0,1.00713871]
[1752844021588,0.00249679,119030.0,119020.0,1.00701871]
[1752844023781,0.003,119050.0,119040.0,0.26945235]
[1752844023989,0.003,119050.0,119040.0,0.30659192]
[1752844025156,0.003,119050.0,119040.0,0.30759192]
[1752844026442,0.003,119050.0,119040.0,0.31248207]
[1752844026593,0.003,119050.0,119040.0,0.30759192]
[1752844027056,0.003,119050.0,119040.0,0.30959192]
[1752844029416,0.003,119050.0,119040.0,0.8354016]
[1752844030023,0.003,119050.0,119040.0,0.83937898]
[1752844030378,0.003,119050.0,119040.0,0.3155693]
[1752844030751,0.003,119050.0,119040.0,0.3135693]
[1752844030985,0.003,119050.0,119040.0,0.3165693]
[1752844032174,0.003,119050.0,119040.0,0.28475953]
[1752844038414,0.003,119050.0,119040.0,0.25385953]
[1752844038864,0.003,119050.0,119040.0,0.28665953]
[1752844040660,0.003,119050.0,119040.0,0.42369953]
[1752844042595,0.003,119050.0,119040.0,0.94950921]
[1752844043066,0.003,119050.0,119040.0,1.03501949]
[1752844044675,1e-08,119050.0,119040.0,1.08501949]
[1752844045829,1e-08,119050.0,119040.0,1.03461949]
[1752844046054,1e-08,119050.0,119040.0,1.08461949]
[1752844046273,1e-08,119050.0,119040.0,0.37216981]
[1752844046482,1e-08,119050.0,119040.0,1.03461949]
[1752844046691,1e-08,119050.0,119040.0,1.14031785]
[1752844047368,1e-08,119050.0,119040.0,1.14027785]
[1752844048877,1e-08,119050.0,119040.0,1.13727785]
[1752844049115,1e-08,119050.0,119040.0,1.13527785]
[1752844050174,1e-08,119050.0,119040.0,1.13927785]
[1752844050695,1e-08,119050.0,119040.0,1.08899785]
[1752844050912,1e-08,119050.0,119040.0,1.13899785]
[1752844051138,1e-08,119050.0,119040.0,1.08899785]
[1752844051363,1e-08,119050.0,119040.0,1.13899785]
[1752844052038,1e-08,119050.0,119040.0,1.14299785]
[1752844052543,1e-08,119050.0,119040.0,1.00667785]
[1752844052762,1e-08,119050.0,119040.0,1.14299785]
[1752844053202,1e-08,119050.0,119040.0,1.69442023]
[1752844053780,1e-08,119050.0,119040.0,1.64442023]
[1752844054025,1e-08,119050.0,119040.0,1.69442023]
[1752844054482,1e-08,119050.0,119040.0,1.55810023]
[1752844054709,1e-08,119050.0,119040.0,1.69438023]
[1752844054926,1e-08,119050.0,119040.0,1.55810023]
[1752844055137,1e-08,119050.0,119040.0,1.69418023]
[1752844055358,1e-08,119050.0,119040.0,1.74418023]
[1752844057380,1e-08,119050.0,119040.0,2.08418023]
[1752844057599,1e-08,119050.0,119040.0,2.07618023]
[1752844057813,1e-08,119050.0,119040.0,2.09018023]
[1752844058023,1e-08,119070.0,119060.0,1.08633592]
[1752844058237,1e-08,119070.0,119060.0,1.41036183]
[1752844058472,1e-08,119070.0,119060.0,1.46358183]
[1752844059348,1e-08,119070.0,119060.0,1.51358183]
[1752844059771,1e-08,119070.0,119060.0,1.51558183]
[1752844060406,1e-08,119070.0,119060.0,0.8121658]
[1752844060624,1e-08,119070.0,119060.0,0.57627467]
[1752844060829,0.00197001,119070.0,119060.0,0.19513904]
[1752844061040,0.06727001,119070.0,119060.0,0.19317904]
[1752844061267,0.06727001,119070.0,119060.0,0.21071989]
[1752844061474,0.06727001,119070.0,119060.0,0.21371989]
[1752844061682,0.06727001,119070.0,119060.0,0.21071989]
[1752844062520,0.06727001,119070.0,119060.0,0.20771989]
[1752844062943,0.06727001,119070.0,119060.0,0.20871989]
[1752844065404,0.06727001,119070.0,119060.0,0.21067989]
[1752844068365,0.06727001,119070.0,119060.0,0.20871989]
[1752844069211,0.06727001,119070.0,119060.0,0.21067989]
[1752844069425,0.06727001,119070.0,119060.0,0.25054815]
[1752844070430,0.06727001,119070.0,119060.0,0.21067989]
[1752844070837,0.06727001,119070.0,119060.0,0.21385989]
[1752844072504,0.13805001,119070.0,119060.0,0.21385989]
[1752844076465,0.00197001,119070.0,119060.0,0.21385989]
[1752844076698,0.13596001,119070.0,119060.0,0.21385989]
[1752844077321,0.16806001,119070.0,119060.0,0.21385989]
[1752844077899,0.03210001,119070.0,119060.0,0.21385989]
[1752844078112,0.16782001,119070.0,119060.0,0.21385989]
[1752844078318,0.13572001,119070.0,119060.0,0.21385989]
[1752844080805,0.13568001,119070.0,119060.0,0.73989435]
[1752844081044,1e-08,119070.0,119060.0,1.22990463]
[1752844081291,1e-08,119070.0,119060.0,1.27990463]
[1752844081518,0.003,119090.0,119080.0,0.52220368]
[1752844081519,0.13868,119090.0,119080.0,0.52220368]
[1752844081755,0.13868,119090.0,119080.0,1.07557043]
[1752844081970,0.003,119090.0,119080.0,1.07875043]
[1752844082805,0.003,119090.0,119080.0,1.07880023]
[1752844083009,0.003,119090.0,119080.0,1.09108049]
[1752844083832,0.003,119090.0,119080.0,0.55276577]
[1752844084044,0.003,119090.0,119080.0,1.09108049]
[1752844084673,0.003,119090.0,119080.0,0.55276577]
[1752844085021,0.008,119090.0,119080.0,1.09108049]
[1752844085472,0.008,119090.0,119080.0,0.55276577]
[1752844085709,0.008,119090.0,119080.0,1.09108049]
[1752844086807,0.01,119090.0,119080.0,1.09108049]
[1752844087013,0.01,119090.0,119080.0,0.55276577]
[1752844087354,0.01,119090.0,119080.0,1.0908924]
[1752844087919,0.01,119090.0,119080.0,0.55257768]
[1752844088119,0.01,119090.0,119080.0,1.0908924]
[1752844088329,0.01,119090.0,119080.0,0.55257768]
[1752844088537,0.01,119090.0,119080.0,1.0908924]
[1752844089388,0.005,119090.0,119080.0,1.0908924]
[1752844089919,0.005,119090.0,119080.0,1.62920712]
[1752844090760,0.005,119090.0,119080.0,0.55257768]
[1752844090960,0.005,119090.0,119080.0,1.0908924]
[1752844094689,0.005,119090.0,119080.0,1.2265324]
[1752844094906,0.005,119090.0,119080.0,1.2898324]
[1752844095724,0.13568,119100.0,119090.0,0.20767123]
[1752844095881,0.13568,119100.0,119090.0,0.74812595]
[1752844096084,0.13568,119100.0,119090.0,0.75130595]
[1752844097173,0.14068,119100.0,119090.0,0.75130595]
[1752844097941,0.14068,119100.0,119090.0,0.21299123]
[1752844098167,0.13568,119100.0,119090.0,0.21299123]
[1752844098371,0.13568,119100.0,119090.0,0.75130595]
[1752844098799,0.13768,119100.0,119090.0,0.75130595]
[1752844099241,0.13568,119100.0,119090.0,0.75130595]
[1752844099847,0.20204,119110.0,119100.0,0.20765502]
[1752844100055,0.20414,119110.0,119100.0,0.74596974]
[1752844101100,0.20414,119110.0,119100.0,0.74798974]
[1752844101722,0.20414,119110.0,119100.0,0.74596974]
[1752844101958,0.20614,119110.0,119100.0,0.21317881]
[1752844102163,0.20614,119110.0,119100.0,0.80516673]
[1752844102380,0.21014,119110.0,119100.0,0.80516673]
[1752844103214,0.009,119110.0,119100.0,0.81024673]
[1752844103447,0.009,119110.0,119100.0,1.15024673]
[1752844103684,0.009,119110.0,119100.0,1.34918673]
[1752844105089,0.007,119110.0,119100.0,1.34918673]
[1752844106030,0.003,119110.0,119100.0,1.28588673]
[1752844106249,0.07203,119110.0,119100.0,0.21517881]
[1752844106466,0.20763,119110.0,119100.0,0.19511417]
[1752844107172,0.20763,119110.0,119100.0,0.20965502]
[1752844107396,0.20763,119110.0,119100.0,0.18446696]
[1752844107397,0.40172816,119110.0,119100.0,0.18446696]
[1752844107627,1.06572598,119110.0,119100.0,0.002]
[1752844107864,1.05733081,119110.0,119100.0,0.002]
[1752844108145,0.16794021,119090.0,119080.0,0.19319633]
[1752844108375,0.37798672,119090.0,119080.0,0.19319626]
[1752844108614,0.20165,119090.0,119080.0,0.20773711]
[1752844108874,0.20473,119090.0,119080.0,0.20773711]
[1752844109892,0.20673,119090.0,119080.0,0.20773711]
[1752844110392,0.20973,119090.0,119080.0,0.20773711]
[1752844112474,0.21812644,119090.0,119080.0,0.20773711]
[1752844112731,0.20973,119090.0,119080.0,0.20773711]
[1752844115099,0.22652295,119090.0,119080.0,0.20773711]
[1752844115314,0.20973,119090.0,119080.0,0.20773711]
[1752844115541,0.3944633,119090.0,119080.0,0.20773711]
[1752844115783,0.30363679,119090.0,119080.0,0.20773711]
[1752844115955,0.29524028,119090.0,119080.0,0.20773711]
[1752844116375,0.30363665,119090.0,119080.0,0.20773711]
[1752844116542,0.29524028,119090.0,119080.0,0.20773711]
[1752844116921,0.30363679,119090.0,119080.0,0.20773711]
[1752844117151,0.30363672,119090.0,119080.0,0.20773711]
[1752844117336,0.29524028,119090.0,119080.0,0.20773711]
[1752844117746,0.30363672,119090.0,119080.0,0.20773711]
[1752844117943,0.29524028,119090.0,119080.0,0.20773711]
[1752844118603,0.29524028,119090.0,119080.0,0.74605183]
[1752844119815,0.29524028,119090.0,119080.0,0.20773711]
[1752844120011,0.29524028,119090.0,119080.0,0.74605183]
[1752844120812,0.29216028,119090.0,119080.0,0.74605183]
[1752844121409,0.20665,119090.0,119080.0,0.74807183]
[1752844121637,0.20665,119090.0,119080.0,1.28944655]
[1752844121638,0.1406,119090.0,119080.0,1.28944655]
[1752844121848,0.005,119090.0,119080.0,1.35184655]
[1752844122820,0.005,119090.0,119080.0,1.48744655]
[1752844123049,0.005,119090.0,119080.0,1.77735683]
[1752844123486,0.003,119090.0,119080.0,1.77735683]
[1752844124118,1e-08,119090.0,119080.0,1.77735683]
[1752844124350,0.1386,119110.0,119100.0,0.23855502]
[1752844124555,0.1386,119110.0,119100.0,0.78194974]
[1752844124775,0.1386,119110.0,119100.0,0.24363502]
[1752844124993,0.1386,119110.0,119100.0,0.81047532]
[1752844125846,0.1416,119110.0,119100.0,0.81047532]
[1752844127297,0.1436,119110.0,119100.0,0.81047532]
[1752844128927,0.1436,119110.0,119100.0,0.2721606]
[1752844129149,0.1436,119110.0,119100.0,0.81047532]
[1752844136165,0.13703014,119110.0,119100.0,0.81047532]
[1752844137936,0.13703014,119110.0,119100.0,0.2721606]
[1752844138163,0.13703014,119110.0,119100.0,0.81047532]
[1752844139082,0.12703014,119110.0,119100.0,0.81047532]
[1752844141897,0.005,119110.0,119100.0,0.81047532]
[1752844142100,0.005,119110.0,119100.0,0.87387532]
[1752844142636,0.005,119110.0,119100.0,0.3355606]
[1752844142870,0.005,119110.0,119100.0,0.87387532]
[1752844143077,0.003,119110.0,119100.0,0.87387532]
[1752844143227,0.003,119110.0,119100.0,1.00610847]
[1752844143611,0.003,119110.0,119100.0,0.97560847]
[1752844144256,0.16682,119120.0,119110.0,0.1992437]
[1752844144587,0.16682,119120.0,119110.0,0.78331193]
[1752844145124,0.16682,119120.0,119110.0,0.78892249]
[1752844145521,0.16882,119120.0,119110.0,0.78892249]
[1752844145755,0.13752,119120.0,119110.0,0.78892249]
[1752844146480,0.13952,119120.0,119110.0,0.78892249]
[1752844146835,0.16962,119120.0,119110.0,0.78892249]
[1752844147178,0.17172,119120.0,119110.0,0.78892249]
[1752844148239,0.20212,119120.0,119110.0,0.24749777]
[1752844148459,0.20525,119120.0,119110.0,0.2076388]
[1752844149151,0.20212,119120.0,119110.0,0.2076388]
[1752844149837,0.20212,119120.0,119110.0,0.74595352]
[1752844150030,0.20212,119120.0,119110.0,0.2076388]
[1752844150234,0.20212,119120.0,119110.0,0.74595352]
[1752844150777,0.20212,119120.0,119110.0,0.74801352]
[1752844151412,0.20212,119120.0,119110.0,0.75112352]
[1752844152083,0.13952,119120.0,119110.0,0.75112352]
[1752844152464,0.17022,119120.0,119110.0,0.75112352]
[1752844153124,0.17232,119120.0,119110.0,0.75112352]
[1752844153328,0.17022,119120.0,119110.0,0.75112352]
[1752844153520,0.13952,119120.0,119110.0,0.75112352]
[1752844157655,0.13952,119120.0,119110.0,0.2128088]
[1752844157840,0.13952,119120.0,119110.0,0.75112352]
[1752844158331,0.0351,119130.0,119120.0,0.19308174]
[1752844158562,0.003,119130.0,119120.0,1.62942203]
[1752844158763,0.003,119130.0,119120.0,1.64254203]
[1752844158996,0.003,119130.0,119120.0,1.67067983]
[1752844159224,0.003,119130.0,119120.0,1.64254203]
[1752844159690,0.003,119130.0,119120.0,1.64359183]
[1752844160145,0.003,119130.0,119120.0,1.10527711]
[1752844160943,0.006,119130.0,119120.0,1.64359183]
[1752844161446,0.006,119130.0,119120.0,1.10527711]
[1752844161447,0.003,119130.0,119120.0,1.10527711]
[1752844161664,0.003,119130.0,119120.0,1.10627711]
[1752844161879,0.00216048,119130.0,119120.0,1.10627711]
[1752844162093,0.39930048,119140.0,119130.0,0.20760638]
[1752844162305,0.40129048,119140.0,119130.0,0.7459211]
[1752844162522,0.39930048,119140.0,119130.0,0.7511111]
[1752844162736,0.33430048,119140.0,119130.0,0.7511111]
[1752844162985,0.33430048,119140.0,119130.0,0.21279638]
[1752844163200,0.13544,119140.0,119130.0,0.7511111]
[1752844163826,0.0679,119150.0,119140.0,0.20759018]
[1752844164034,0.2053,119150.0,119140.0,0.20959018]
[1752844164278,0.2053,119150.0,119140.0,0.21278018]
[1752844164498,0.20729,119150.0,119140.0,0.7510949]
[1752844164706,0.20729,119150.0,119140.0,0.7479049]
[1752844164984,0.20929,119150.0,119140.0,0.7479049]
[1752844165801,0.21129,119150.0,119140.0,0.7479049]
[1752844166582,0.21425,119150.0,119140.0,0.20759018]
[1752844166799,0.29976028,119150.0,119140.0,0.20759018]
[1752844168666,0.16236028,119150.0,119140.0,0.20759018]
[1752844168938,0.29984028,119150.0,119140.0,0.20759018]
[1752844170484,0.29984028,119150.0,119140.0,0.7459049]
[1752844170742,0.07389,119150.0,119140.0,0.7459049]
[1752844170971,0.21133,119150.0,119140.0,0.7479049]
[1752844171201,0.21133,119150.0,119140.0,0.7459049]
[1752844171440,0.14484,119150.0,119140.0,0.7510949]
[1752844171897,0.21319,119150.0,119140.0,0.20759018]
[1752844172153,0.07175,119150.0,119140.0,0.20759018]
[1752844172386,0.20627,119150.0,119140.0,0.7499049]
[1752844172596,0.20627,119150.0,119140.0,0.7530949]
[1752844172840,0.20627,119150.0,119140.0,0.21478018]
[1752844173083,0.20627,119150.0,119140.0,0.79366193]
[1752844173606,0.20627,119150.0,119140.0,0.25534721]
[1752844174054,0.20627,119150.0,119140.0,0.25634721]
[1752844174295,0.14088,119150.0,119140.0,0.79466193]
[1752844175148,0.14088,119150.0,119140.0,0.25634721]
[1752844175377,0.21183,119150.0,119140.0,0.21059018]
[1752844176116,0.20887,119150.0,119140.0,0.7489049]
[1752844176335,0.20887,119150.0,119140.0,0.7509049]
[1752844177188,0.20887,119150.0,119140.0,0.7540949]
[1752844177404,0.17617,119150.0,119140.0,0.7540949]
[1752844177536,0.20907,119150.0,119140.0,0.7540949]
[1752844178403,0.20708,119150.0,119140.0,0.7540949]
[1752844178612,0.17418,119150.0,119140.0,0.21578018]
[1752844178767,0.17418,119150.0,119140.0,0.7540949]
[1752844179169,0.20927,119150.0,119140.0,0.7509049]
[1752844179382,0.20927,119150.0,119140.0,0.21059018]
[1752844179644,0.21223,119150.0,119140.0,0.21059018]
[1752844180289,0.21223,119150.0,119140.0,0.7489049]
[1752844181919,0.21223,119150.0,119140.0,0.21059018]
[1752844182154,0.21223,119150.0,119140.0,0.7489049]
[1752844182550,0.20927,119150.0,119140.0,0.7489049]
[1752844183167,0.20927,119150.0,119140.0,0.21059018]
[1752844183386,0.20927,119150.0,119140.0,0.7489049]
[1752844184003,0.20927,119150.0,119140.0,0.21059018]
[1752844184232,0.20927,119150.0,119140.0,0.7489049]
[1752844184843,0.20927,119150.0,119140.0,0.7509049]
[1752844185262,0.20927,119150.0,119140.0,0.7540949]
[1752844185696,0.17617,119150.0,119140.0,0.7540949]
[1752844185947,0.0034,119150.0,119140.0,0.7540949]
[1752844186152,0.13621232,119150.0,119140.0,0.8174949]
[1752844187842,0.13621232,119150.0,119140.0,0.7857949]
[1752844188749,0.13621232,119150.0,119140.0,0.7540949]
[1752844189180,0.13621232,119150.0,119140.0,1.1577949]
[1752844189396,0.0004,119160.0,119150.0,0.53303313]
[1752844189615,0.13784,119160.0,119150.0,1.07334785]
[1752844189848,0.13784,119160.0,119150.0,1.07653785]
[1752844190281,0.0004,119160.0,119150.0,1.0910787]
[1752844190503,0.0014,119160.0,119150.0,1.1547787]
[1752844190753,0.1398,119160.0,119150.0,1.1547787]
[1752844191393,0.1388,119160.0,119150.0,1.1547787]
[1752844191805,0.1378,119160.0,119150.0,1.1547787]
[1752844192031,0.0004,119160.0,119150.0,1.1587787]
[1752844192920,0.0004,119160.0,119150.0,1.2628587]
[1752844193340,0.0321,119160.0,119150.0,1.0970687]
[1752844193760,0.0004,119160.0,119150.0,1.0970687]
[1752844194199,0.0004,119160.0,119150.0,1.2345087]
[1752844194422,0.0004,119160.0,119150.0,1.2952087]
[1752844194895,0.0004,119160.0,119150.0,1.2952487]
[1752844195664,0.0004,119160.0,119150.0,1.2345487]
[1752844195877,0.0004,119160.0,119150.0,1.2345887]
[1752844196327,0.0034,119170.0,119160.0,1.07133164]
[1752844196542,0.0034,119170.0,119160.0,1.08785249]
[1752844196753,0.0034,119170.0,119160.0,1.09103249]
[1752844197435,0.0034,119170.0,119160.0,1.69484721]
[1752844197662,0.00389771,119170.0,119160.0,1.69584721]
[1752844198621,0.00389771,119170.0,119160.0,0.75685777]
[1752844198889,0.00389771,119170.0,119160.0,1.83348721]
[1752844200012,0.13768,119180.0,119170.0,0.54754159]
[1752844200246,0.003,119190.0,119180.0,0.20752538]
[1752844200469,0.003,119190.0,119180.0,1.0910001]
[1752844200676,0.003,119190.0,119180.0,0.55268538]
[1752844200887,0.003,119190.0,119180.0,1.0910001]
[1752844201311,0.003,119190.0,119180.0,0.55268538]
[1752844201551,0.003,119190.0,119180.0,1.30229453]
[1752844201773,0.003,119190.0,119180.0,0.76397981]
[1752844201983,0.003,119190.0,119180.0,1.30838454]
[1752844202417,0.003,119190.0,119180.0,0.62641981]
[1752844202645,0.07153,119190.0,119180.0,0.62125981]
[1752844202858,0.0799194,119190.0,119180.0,0.20752538]
[1752844203085,0.89671303,119190.0,119180.0,0.19298467]
[1752844203331,0.28670912,119190.0,119180.0,0.17620405]
[1752844203555,0.28670912,119190.0,119180.0,0.19298502]
[1752844203824,0.0083901,119180.0,119170.0,0.18465895]
[1752844204056,0.30355038,119180.0,119170.0,0.1991998]
[1752844204288,0.29516028,119180.0,119170.0,0.18465895]
[1752844204750,0.30355031,119180.0,119170.0,0.1991998]
[1752844205037,0.30355031,119180.0,119170.0,0.18465895]
[1752844205291,0.29516028,119180.0,119170.0,0.1991998]
[1752844205535,0.30355038,119180.0,119170.0,0.1942798]
[1752844205788,1.0927693,119180.0,119170.0,0.17973987]
[1752844206021,1.03484977,119180.0,119170.0,0.17134864]
[1752844206254,0.47975478,119180.0,119170.0,4.98e-05]
[1752844206475,0.14626753,119170.0,119160.0,0.19301657]
[1752844206707,0.26218066,119170.0,119160.0,0.19306638]
[1752844206938,0.25378971,119170.0,119160.0,0.19306638]
[1752844207161,0.08316753,119170.0,119160.0,1.62939667]
[1752844207651,0.08316753,119170.0,119160.0,1.69209667]
[1752844207850,0.18764,119190.0,119180.0,0.20752538]
[1752844208129,0.18764,119190.0,119180.0,0.7510001]
[1752844208359,0.18764,119190.0,119180.0,1.0910001]
[1752844208586,0.003,119190.0,119180.0,1.0910001]
[1752844208816,0.14252,119190.0,119180.0,1.0910001]
[1752844209064,0.003,119190.0,119180.0,0.55268538]
[1752844209290,0.14256,119190.0,119180.0,0.55268538]
[1752844209520,0.14256,119190.0,119180.0,0.62641483]
[1752844209751,0.14256,119190.0,119180.0,1.16472955]
[1752844210218,0.14458,119190.0,119180.0,0.62641483]
[1752844210427,0.14458,119190.0,119180.0,1.17054955]
[1752844210657,0.2191794,119190.0,119180.0,0.21652538]
[1752844210887,0.23595855,119190.0,119180.0,0.21652538]
[1752844211126,0.23595855,119190.0,119180.0,0.1935945]
[1752844211127,1.03597324,119190.0,119180.0,0.1935945]
[1752844211360,1.02758377,119190.0,119180.0,0.01739066]
[1752844211595,0.52521946,119190.0,119180.0,0.19359457]
[1752844211840,0.52521946,119190.0,119180.0,0.20198502]
[1752844212063,0.48926905,119190.0,119180.0,0.21876529]
[1752844212278,0.48926898,119190.0,119180.0,0.21876529]
[1752844212500,0.30468975,119190.0,119180.0,0.20198453]
[1752844212738,0.15674028,119190.0,119180.0,0.22491555]
[1752844212951,0.29658028,119190.0,119180.0,0.21891555]
[1752844213167,0.29658028,119190.0,119180.0,0.21591555]
[1752844213168,0.30496975,119190.0,119180.0,0.21591555]
[1752844213392,0.17351929,119190.0,119180.0,0.21891555]
[1752844213601,0.32206897,119190.0,119180.0,0.21891555]
[1752844213818,0.31367929,119190.0,119180.0,0.21891555]
[1752844214073,0.29690028,119190.0,119180.0,0.21891555]
[1752844214511,0.30528975,119190.0,119180.0,0.21891555]
[1752844215807,0.31367929,119190.0,119180.0,0.21891555]
[1752844216027,0.15674028,119190.0,119180.0,0.21891555]
[1752844216273,0.30512968,119190.0,119180.0,0.21891555]
[1752844216501,0.30512968,119190.0,119180.0,0.29158985]
[1752844216764,0.32190883,119190.0,119180.0,0.21891555]
[1752844217188,0.31351915,119190.0,119180.0,0.21891555]
[1752844217408,0.32190876,119190.0,119180.0,0.21891555]
[1752844217637,0.29674028,119190.0,119180.0,0.21891555]
[1752844217911,0.36164988,119190.0,119180.0,0.21891555]
[1752844218348,0.29674028,119190.0,119180.0,0.21891555]
[1752844218564,0.30512968,119190.0,119180.0,0.21891555]
[1752844218998,0.31351922,119190.0,119180.0,0.21891555]
[1752844219234,0.29674028,119190.0,119180.0,0.21891555]
[1752844219448,0.31351908,119190.0,119180.0,0.21891555]
[1752844219663,0.30399961,119190.0,119180.0,0.21891555]
[1752844219919,0.31238908,119190.0,119180.0,0.21891555]
[1752844220117,0.31559901,119190.0,119180.0,0.21891555]
[1752844220333,0.30720961,119190.0,119180.0,0.21891555]
[1752844220970,0.31559915,119190.0,119180.0,0.21891555]
[1752844221183,0.32398883,119190.0,119180.0,0.21891555]
[1752844221394,0.31559908,119190.0,119180.0,0.21891555]
[1752844222048,0.30720961,119190.0,119180.0,0.21891555]
[1752844222265,0.15674028,119190.0,119180.0,0.21891555]
[1752844222487,0.29613028,119190.0,119180.0,0.2043747]
[1752844222708,0.29613028,119190.0,119180.0,0.21891555]
[1752844222943,0.15353028,119190.0,119180.0,0.22389555]
[1752844223150,0.29613028,119190.0,119180.0,0.22092555]
[1752844223359,0.29613028,119190.0,119180.0,0.21891555]
[1752844224290,0.30451961,119190.0,119180.0,0.21891555]
[1752844224516,0.29613028,119190.0,119180.0,0.21891555]
[1752844226065,0.29625028,119190.0,119180.0,0.21891555]
[1752844227766,0.066,119190.0,119180.0,0.22389555]
[1752844227989,0.14552,119190.0,119180.0,0.22389555]
[1752844228395,0.003,119190.0,119180.0,0.22389555]
[1752844228609,0.14552,119190.0,119180.0,0.22389555]
[1752844229234,0.21083,119190.0,119180.0,0.22092555]
[1752844230106,0.21921933,119190.0,119180.0,0.22092555]
[1752844230330,0.21083,119190.0,119180.0,0.22092555]
[1752844231020,0.32654939,119190.0,119180.0,0.2189159]
[1752844231231,0.50069845,119190.0,119180.0,0.20437519]
[1752844231668,0.49230898,119190.0,119180.0,0.003]
[1752844231893,0.47552955,119190.0,119180.0,0.003]
[1752844232097,0.33267563,119190.0,119180.0,0.01754085]
[1752844232313,0.46640567,119190.0,119180.0,0.01754085]
[1752844232528,1.077193,119190.0,119180.0,0.01754085]
[1752844232776,1.077193,119190.0,119180.0,0.003]
[1752844233015,1.09012844,119190.0,119180.0,0.003]
[1752844233368,0.57735829,119190.0,119180.0,0.003]
[1752844233608,1.11532144,119190.0,119180.0,0.003]
[1752844233848,1.11532144,119190.0,119180.0,0.001]
[1752844234084,0.25790074,119170.0,119160.0,0.02298273]
[1752844234328,0.25790074,119170.0,119160.0,0.03137473]
[1752844234329,0.48766102,119170.0,119160.0,0.03137473]
[1752844234601,1.02023329,119170.0,119160.0,0.01459066]
[1752844234837,0.48227014,119170.0,119160.0,0.02298273]
[1752844235083,0.48227014,119170.0,119160.0,0.01459066]
[1752844235291,1.02023329,119170.0,119160.0,4.981e-05]
[1752844235561,0.56802976,119170.0,119160.0,4.981e-05]
[1752844235828,1.10599291,119170.0,119160.0,4.981e-05]
[1752844236324,1.10699291,119170.0,119160.0,4.981e-05]
[1752844236799,1.10599291,119170.0,119160.0,4.981e-05]
[1752844237302,1.10999291,119170.0,119160.0,4.981e-05]
[1752844237508,0.57202976,119170.0,119160.0,4.981e-05]
[1752844237728,1.10999291,119170.0,119160.0,4.981e-05]
[1752844238846,0.57202976,119170.0,119160.0,4.981e-05]
[1752844239076,1.10999291,119170.0,119160.0,4.981e-05]
[1752844240175,0.57202976,119170.0,119160.0,4.981e-05]
[1752844240396,1.10999291,119170.0,119160.0,4.981e-05]
[1752844241465,0.59722676,119170.0,119160.0,4.981e-05]
[1752844241687,1.13518991,119170.0,119160.0,4.981e-05]
[1752844242119,1.04943029,119170.0,119160.0,4.981e-05]
[1752844243213,0.51230714,119170.0,119160.0,0.18467522]
[1752844243481,0.18161728,119170.0,119160.0,0.75597259]
[1752844243694,0.44449334,119170.0,119160.0,0.22097944]
[1752844243908,0.50559334,119170.0,119160.0,0.21800944]
[1752844244118,0.51698436,119170.0,119160.0,0.01459066]
[1752844244325,0.50859348,119170.0,119160.0,0.19082421]
[1752844244529,0.50020225,119170.0,119160.0,0.21599944]
[1752844245190,0.50020196,119170.0,119160.0,0.21599944]
[1752844245428,0.49720196,119170.0,119160.0,0.21599944]
[1752844245920,0.56089971,119170.0,119160.0,0.21599944]
[1752844246149,0.55250855,119170.0,119160.0,0.21599944]
[1752844246368,0.49720196,119170.0,119160.0,0.21599944]
[1752844246780,0.27419028,119170.0,119160.0,0.75894259]
[1752844247000,0.41731028,119170.0,119160.0,0.75894259]
[1752844247219,0.41731028,119170.0,119160.0,0.22097944]
[1752844247642,0.42570109,119170.0,119160.0,0.22097944]